Cogmind - Beta 17 @@@ ROGUE MODE // 2026.06.27 @ 00:45:28 // Winter2019/RPGLIKE Player: AngelSpirit Result: Destroyed by H-61 Shepherd with Heavy Assault Cannon Performance ------------- Evolutions (2) 1000 Regions Visited (5) 1000 Robots Destroyed (54) 270 Value Destroyed (1157) 1157 Prototype IDs (35) 700 Alien Tech Used (0) 0 Bonus (149) 149 TOTAL SCORE: 4276 Bonus ------- Aligned with FarCom 300 Friendly Fire -151 Cogmind --------- Core Integrity 0/1000 Matter 270/300 Energy 104/170 System Corruption 0% Temperature Cool (0) Movement Hovering (106) Ox1 Location -8/Materials Parts ------- > --- POWER (1) -------- Light Neutrino Core > --- PROPULSION (2) --- Aerolev Unit Aerolev Unit > --- UTILITY (2) ------ Experimental Core Analyzer Shield Generator > --- WEAPON (3) ------- Heavy Particle Gun 8R-AWN's Boregun 8R-AWN's Boregun > --- INVENTORY (5) ---- System Purifier Trap Extractor (0/4) AS-neutralizer No. 17b Advanced EMP Blaster Deploy-a-Sentry Peak State ------------ > --- POWER ------------ Light Neutrino Core > --- PROPULSION ------- Advanced Myomer Leg Aerolev Unit > --- UTILITY ---------- Improved Targeting Computer Experimental Core Analyzer > --- WEAPON ----------- Heavy Particle Gun 8R-AWN's Boregun 8R-AWN's Boregun > --- INVENTORY -------- System Purifier PSU Rigger AS-neutralizer No. 17b Advanced EMP Blaster Deploy-a-Sentry [Rating: 58] Favorites ----------- Power Light Ion Engine Engine Light Ion Engine Power Core Light Neutrino Core Propulsion Wheel Leg Advanced Myomer Leg Wheel Wheel Hover Unit Aerolev Unit Utility Seismic Detector Device Seismic Detector Processor Experimental Core Analyzer Weapon Assault Rifle Energy Gun Salvaging Laser Ballistic Gun Assault Rifle Launcher Advanced EMP Blaster Build | -11 -10 -10 -10 -9 -8 ------- Run | Yrd Mat Min Exi Min Mat Slots Evolved 4 | 1 . 1 . . 2 Power . | . . . . . . Propulsion 1 | . . . . . 1 Utility 1 | . . . . . 1 Weapon 2 | 1 . 1 . . . Parts Attached 28 | 5 4 1 9 1 8 Power 3 | 1 . . 2 . . Engine 1 | 1 . . . . . Core 2 | . . . 2 . . Reactor . | . . . . . . Propulsion 5 | 1 . . 1 . 3 Treads . | . . . . . . Leg 2 | . . . 1 . 1 Wheel 1 | 1 . . . . . Hover 2 | . . . . . 2 Flight . | . . . . . . Utility 7 | 1 . . 4 . 2 Device 4 | 1 . . 2 . 1 Storage . | . . . . . . Processor 3 | . . . 2 . 1 Hackware . | . . . . . . Protection . | . . . . . . Artifact . | . . . . . . Weapon 13 | 2 4 1 2 1 3 Energy Gun 5 | 2 2 . . . 1 Energy Cannon . | . . . . . . Ballistic Gun 7 | . 2 1 2 1 1 Ballistic Cannon . | . . . . . . Launcher 1 | . . . . . 1 Special Weapon . | . . . . . . Impact Weapon . | . . . . . . Slashing Weapon . | . . . . . . Piercing Weapon . | . . . . . . Special Melee Weapon . | . . . . . . Unidentified Prototypes 8 | . . . 4 . 4 Parts Lost 2 | . . . 1 . 1 Power . | . . . . . . Propulsion 1 | . . . 1 . . Utility . | . . . . . . Weapon 1 | . . . . . 1 Highest Loss Streak 1 | . . . 1 . 1 To Critical Strikes 1 | . . . 1 . . Average Backups 1 | . 1 1 1 3 3 Power . | . . . . . . Propulsion . | . . . . . . Utility 1 | . . . 1 3 3 Weapon . | . 1 1 . . . Tool/Special . | . . . . . . Unused Backups 11 | . 1 1 6 . 3 Power 3 | . . . 3 . . Propulsion 1 | . 1 . . . . Utility 6 | . . . 3 . 3 Weapon 1 | . . 1 . . . Tool/Special . | . . . . . . Average Slot Usage (%) 99 | . 100 100 98 100 98 Engine 12 | . 20 17 11 . . Core 4 | . . . 4 16 12 Leg 5 | . . . 7 16 11 Wheel 10 | . 20 17 7 . . Hover 1 | . . . . . 13 Device 13 | . 20 17 12 . 6 Processor 4 | . . . 2 16 17 Energy Gun 4 | . 13 . . . 7 Ballistic Gun 41 | . 26 46 50 50 29 Peak Build Rating 58 | 5 5 6 48 49 58 Average Rating 21 | 3 4 5 23 48 53 On Entrance 18 | . 5 5 6 48 49 Avg Prop Armor Cover (%) . | . . . . . . Naked Turns . | . . . . . . Heaviest Build 36 | 8 8 10 36 23 25 Greatest Support 45 | 10 10 10 30 30 45 Greatest Overweight (x) 5 | . . . 5 . 2 Average Overweight (x) . | . . . . . . Largest Inventory Capacity 5 | 3 4 4 4 4 5 Average Capacity 3 | 3 3 4 4 4 4 Most Carried 5 | . 4 4 4 4 5 Average Carried 3 | . 3 3 2 4 4 Final Capacity 5 | 3 4 4 4 4 5 Final Carried 5 | . 4 4 4 4 5 Class Distribution -------------------- 40% | Gunner 30% | Mutant 29% | Scavenger-Gunner Dominant Class ---------------- Mutant | -10/Materials Gunner | -10/Mines Gunner | -10/Exiles Scavenger-Gunner | -9/Mines Scavenger-Gunner | -8/Materials Resources | -11 -10 -10 -10 -9 -8 ----------- Run | Yrd Mat Min Exi Min Mat Matter Collected 1850 | 232 262 169 863 84 240 Remotely . | . . . . . . Salvage Created 2157 | 37 755 224 582 325 234 Parts 184 | 8 34 13 86 18 25 Haulers Intercepted 4 | . 2 . . . 2 Recyclers Shooed 2 | . 2 . . . . Parts Field Recycled . | . . . . . . Retrieved Matter . | . . . . . . Parts Self-Destructed . | . . . . . . Prevented . | . . . . . . Parts Restored . | . . . . . . Kills | -11 -10 -10 -10 -9 -8 ------- Run | Yrd Mat Min Exi Min Mat Combat Hostiles Destroyed 33 | . 13 6 6 3 5 Guns 33 | . 13 6 6 3 5 Classes Destroyed 13 | 1 5 . 3 2 2 Worker 1 | . . . . 1 . Builder 1 | . . . . 1 . Tunneler 3 | 2 . 1 . . . Hauler 4 | . 2 . . . 2 Recycler 2 | . 1 . . 1 . Operator 1 | . 1 . . . . Turret 1 | . . . 1 . . Watcher 3 | . 2 . . . 1 Swarmer 3 | . . . . . 3 Grunt 22 | . 13 6 . 3 . Sentry 2 | . . . . . 2 Zionite 8 | . . . 8 . . Assembled 5 | . . . 5 . . Best Kill Streak 6 | 2 4 3 6 6 3 Combat Bots Only 5 | . 3 2 5 3 3 Max Kills in Single Turn 3 | 1 1 1 1 3 1 Gunslinging . | . . . . . . Exploded . | . . . . . . Melee . | . . . . . . Uniques/NPCs Destroyed 4 | . . . 4 . . 8R-AWN (-10/Exiles) EX-BIN (-10/Exiles) EX-HEX (-10/Exiles) EX-DEC (-10/Exiles) Combat | -11 -10 -10 -10 -9 -8 -------- Run | Yrd Mat Min Exi Min Mat Hostile Shots Fired 196 | . 52 32 83 4 25 Missed 55 | . 15 15 18 2 5 Hits 141 | . 37 17 65 2 20 Melee 9 | . . . 9 . . Projectile 132 | . 37 17 56 2 20 Critical Strikes 27 | . 1 . 26 . . Damage Taken 2217 | . 429 225 1190 27 346 Core 1825 | . 369 190 950 20 296 Absorbed by Shields 97 | . . . . . 97 Redirected to Core 1271 | . 186 111 780 20 174 Ignored by Resistances 13 | . . . . . 13 Core Remaining (%) 51 | 100 . . . 2 . Volleys Fired 179 | 3 61 24 75 4 12 Largest 3 | 2 2 3 3 3 3 Hottest 115 | 100 60 60 80 83 115 Shots Fired 405 | 6 122 53 184 12 28 Gun 405 | 6 122 53 184 12 28 Cannon . | . . . . . . Launcher . | . . . . . . Special . | . . . . . . Kinetic 343 | . 68 53 184 12 26 Thermal 62 | 6 54 . . . 2 Explosive . | . . . . . . Electromagnetic . | . . . . . . Robot Hit Streak 31 | 2 16 23 31 4 11 Robot Miss Streak 4 | 3 4 1 3 3 2 Penetration Max 1 | . . . 1 1 . Secondary Targets 4 | . . 1 2 . 1 Max Gunslinging Chain 1 | . . 1 1 . 1 Shots Hit Robots 294 | 2 81 48 143 5 15 Core Hits 125 | 2 40 16 49 8 10 Critical Kills 15 | . . . 8 3 4 Critical Parts Destroyed 14 | . . . 11 . 3 Critical Strikes 32 | 2 . . 19 3 8 Burn 2 | 2 . . . . . Destroy 30 | . . . 19 3 8 Melee Attacks . | . . . . . . Impact . | . . . . . . Slashing . | . . . . . . Piercing . | . . . . . . Sneak Attacks . | . . . . . . Combat Hostiles . | . . . . . . Follow-up Attacks . | . . . . . . Damage Inflicted 4030 | 25 921 576 2079 165 264 Guns 4030 | 25 921 576 2079 165 264 Cannons . | . . . . . . Explosions . | . . . . . . Melee . | . . . . . . Ramming . | . . . . . . Kinetic 3697 | . 613 576 2079 165 264 Thermal 333 | 25 308 . . . . Explosive . | . . . . . . Electromagnetic . | . . . . . . Impact . | . . . . . . Slashing . | . . . . . . Piercing . | . . . . . . Highest Corruption . | . . . . . . Average Corruption . | . . . . . . Corruption Purged . | . . . . . . Corruption Blocked . | . . . . . . Overload Shots . | . . . . . . Overflow Damage . | . . . . . . Projectiles . | . . . . . . Explosions . | . . . . . . Melee . | . . . . . . Knockbacks . | . . . . . . Impact . | . . . . . . Kinetic . | . . . . . . Secondary . | . . . . . . Self-Inflicted Damage . | . . . . . . Shots . | . . . . . . Rammed . | . . . . . . Targets Rammed . | . . . . . . Kicked . | . . . . . . Crushed . | . . . . . . Highest Temperature 63 | 42 50 . . 63 45 Average Temperature 19 | 20 15 . . 33 20 Received Heat Transfer 444 | . 252 126 . 15 51 Siege Activations . | . . . . . . Martial Activations . | . . . . . . Shielding Activations . | . . . . . . Robots Disrupted . | . . . . . . Combat Hostiles . | . . . . . . Robots Corrupted . | . . . . . . Combat Hostiles . | . . . . . . Parts Fried . | . . . . . . Impact Corruptions . | . . . . . . Robots Melted . | . . . . . . Combat Hostiles . | . . . . . . Parts Melted 4 | . 4 . . . . Heat Transferred 1097 | 222 875 . . . . Parts Sabotaged . | . . . . . . Parts Stolen . | . . . . . . Parts Stripped . | . . . . . . Power Chain Reactions . | . . . . . . Alert | -11 -10 -10 -10 -9 -8 ------- Run | Yrd Mat Min Exi Min Mat Maximum Alert Level . | . . . . . . Low Security (%) 100 | 100 100 100 . 100 100 Level 1 . | . . . . . . Level 2 . | . . . . . . Level 3 . | . . . . . . Level 4 . | . . . . . . Level 5 . | . . . . . . High Security . | . . . . . . Max Security . | . . . . . . Peak Influence 157 | 5 157 80 . 77 78 Initial 37 | . 3 37 . . . Average 38 | . 68 19 . 18 24 Influence Increases 898 | 10 432 170 . 87 199 Destroy 0b10 Robot/C 540 | . 260 120 . 60 100 Destroy 0b10 Robot/NC 75 | 10 30 5 . 15 15 Destroy Leader 144 | . 68 30 . 10 36 Successful Hack 25 | . 14 . . . 11 Select Force Hacks 60 | . 60 . . . . Disable Machine 30 | . . . . . 30 Destroy Structure 9 | . . . . 2 7 Lose Combat Pursuer 15 | . . 15 . . . Influence Decreases 867 | 5 341 266 . 87 168 Entered New Map 61 | . 2 59 . . . Time Decay 796 | 5 339 207 . 87 158 Lost Part 10 | . . . . . 10 Squads Dispatched 9 | . 5 . . . 4 Investigation 4 | . 4 . . . . Extermination . | . . . . . . Reinforcement 2 | . 1 . . . 1 Assault . | . . . . . . Garrison 3 | . . . . . 3 Intercept . | . . . . . . Searches Triggered . | . . . . . . Construction Impeded . | . . . . . . Haulers Reinforced . | . . . . . . Active Scanning Responses . | . . . . . . Cargo Convoy Interrupts . | . . . . . . Stealth | -11 -10 -10 -10 -9 -8 --------- Run | Yrd Mat Min Exi Min Mat Distress Signals 4 | . 2 . . 1 1 Communications Jammed . | . . . . . . Distress Signals . | . . . . . . Times Spotted 56 | . 27 7 13 3 6 Peak Tracking Total 9 | . 9 2 9 3 3 Tactical Retreats 2 | . . 1 1 . . Traps | -11 -10 -10 -10 -9 -8 ------- Run | Yrd Mat Min Exi Min Mat Traps Triggered . | . . . . . . Indirectly . | . . . . . . Trap Hack Attempts . | . . . . . . Triggered . | . . . . . . Disarmed . | . . . . . . Reprogrammed . | . . . . . . Reused 4 | . . . 4 . . Traps Extracted . | . . . . . . Installed 4 | . . . 4 . . Triggered . | . . . . . . Most Traps Carried 4 | . . 4 4 . . Machines | -11 -10 -10 -10 -9 -8 ---------- Run | Yrd Mat Min Exi Min Mat Machines Disabled 12 | . . . 10 . 2 Max in Single Turn 1 | . . . 1 . 1 Machines Repaired . | . . . . . . Machines Dismantled . | . . . . . . Machines Sabotaged . | . . . . . . Overloaded Fab Kills . | . . . . . . Hacking | -11 -10 -10 -10 -9 -8 --------- Run | Yrd Mat Min Exi Min Mat Machines Accessed 14 | . 9 . 2 . 3 Terminals 9 | . 7 . . . 2 Fabricators . | . . . . . . Repair Stations . | . . . . . . Recycling Units 2 | . 2 . . . . Scanalyzers 1 | . . . . . 1 Garrison Access . | . . . . . . Total Hacks 33 | . 18 . 2 . 13 Successful 28 | . 16 . 2 . 10 Failed 5 | . 2 . . . 3 Catastrophic . | . . . . . . Database Lockouts . | . . . . . . Manual 22 | . 16 . 1 . 5 Terminals 21 | . 15 . . . 6 Fabricators . | . . . . . . Repair Stations . | . . . . . . Recycling Units 3 | . 3 . . . . Scanalyzers 7 | . . . . . 7 Garrison Access . | . . . . . . Terminal Hacks 5 | . 2 . 2 . 1 Record 1 | . . . 1 . . Prototype ID Bank 1 | . 1 . . . . Terminal Index 1 | . 1 . . . . Alert Level 1 | . . . . . 1 Proto ID Catalog 1 | . . . 1 . . Fabricator Hacks . | . . . . . . Repair Station Hacks . | . . . . . . Recycling Unit Hacks 1 | . 1 . . . . Retrieve Components 1 | . 1 . . . . Scanalyzer 5 | . . . . . 5 Insert Component 1 | . . . . . 1 Analyze 2 | . . . . . 2 Retrieve Study 2 | . . . . . 2 Garrison Access Hacks . | . . . . . . Unauthorized Hacks 17 | . 13 . . . 4 Terminals 15 | . 11 . . . 4 Botnet 5 | . 4 . . . 1 Operators 1 | . . . . . 1 Skim 9 | . 7 . . . 2 Fabricators . | . . . . . . Repair Stations . | . . . . . . Recycling Units 2 | . 2 . . . . Tunnel 2 | . 2 . . . . Scanalyzers . | . . . . . . Garrison Access . | . . . . . . Data Cores Recovered . | . . . . . . Used . | . . . . . . Hacking Detections 9 | . 6 . . . 3 Full Trace Events 2 | . 2 . . . . Feedback Events . | . . . . . . Feedback Blocked . | . . . . . . Robot Schematics Acquired . | . . . . . . Robots Built . | . . . . . . Authchips . | . . . . . . Time . | . . . . . . Total Robot Build Rating . | . . . . . . Part Schematics Acquired 1 | . . . . . 1 Parts Built . | . . . . . . Authchips . | . . . . . . Time . | . . . . . . Total Part Build Rating . | . . . . . . Part Studies Acquired 2 | . . . . . 2 Parts Repaired . | . . . . . . Time . | . . . . . . Parts Recycled . | . . . . . . Recycled Matter . | . . . . . . Retrieved Matter . | . . . . . . Retrieved Components 10 | . 10 . . . . Parts Scanalyzed 1 | . . . . . 1 Part Schematics Acquired 1 | . . . . . 1 Parts Damaged . | . . . . . . Bothacking | -11 -10 -10 -10 -9 -8 ------------ Run | Yrd Mat Min Exi Min Mat Used RIF Installer . | . . . . . . Robots Hacked . | . . . . . . Non-combat . | . . . . . . Combat . | . . . . . . Robot Hacks Applied . | . . . . . . Relay Couplers Released . | . . . . . . Fabnet Peak Effective % . | . . . . . . Robots Rewired . | . . . . . . Allies Hacked . | . . . . . . Hacks Repelled . | . . . . . . Allies | -11 -10 -10 -10 -9 -8 -------- Run | Yrd Mat Min Exi Min Mat Total Allies . | . . . . . . Largest Group . | . . . . . . Highest-Rated Group . | . . . . . . Highest-Rated Ally . | . . . . . . Total Orders . | . . . . . . Ally Attacks . | . . . . . . Total Damage . | . . . . . . Kills . | . . . . . . Allies Corrupted . | . . . . . . Allies Melted . | . . . . . . Intel | -11 -10 -10 -10 -9 -8 ------- Run | Yrd Mat Min Exi Min Mat Active Infowar (turns) 2651 | 2 982 749 918 . . Seismic 2651 | 2 982 749 918 . . Robot Analysis Total . | . . . . . . Derelict Logs Recovered 3 | . . 2 . 1 . Drone Launches . | . . . . . . Drone Recoveries . | . . . . . . Exploration | -11 -10 -10 -10 -9 -8 ------------- Run | Yrd Mat Min Exi Min Mat Turns Passed 4077 | 57 982 749 1450 360 479 Spaces Moved 3411 | 38 902 718 1121 288 344 Core 10 | 3 . . 7 . . Treads . | . . . . . . Legs 901 | . . . 466 288 147 Wheels 2303 | 35 902 718 648 . . Hover 197 | . . . . . 197 Flight . | . . . . . . Fastest Speed 50 | 50 80 80 80 120 106 Average Speed 92 | 77 80 80 97 120 110 Slowest Speed 300 | 80 80 80 300 120 170 Overloaded Moves . | . . . . . . Propulsion Burnouts . | . . . . . . Robots Hopped . | . . . . . . Potential Cave-ins . | . . . . . . Cave-ins Triggered . | . . . . . . Exploration Rate (%) 62 | 4 97 98 90 49 39 Regions Visited 5 Branch Regions 3 Pre-discovered Areas 6 | . 2 2 1 1 . Known Exits Taken 1 | . 1 . . . . Unknown Exits Taken 4 | 1 . 1 1 1 . Scrap Searched 3 | . . 2 . 1 . Spaces Dug . | . . . . . . Terrain Destroyed 14 | . . . 4 5 5 Melee . | . . . . . . Projectile 14 | . . . 4 5 5 AOE . | . . . . . . Terrain Rammed . | . . . . . . Walls Destroyed . | . . . . . . Machines Disabled . | . . . . . . Actions | -11 -10 -10 -10 -9 -8 --------- Run | Yrd Mat Min Exi Min Mat Total 4003 | 56 1063 846 1325 294 419 Wait 254 | 11 69 73 70 1 30 Move 3406 | 37 901 717 1120 287 344 Hop . | . . . . . . Pick Up 31 | . 7 7 16 . 1 Fast Attach 32 | 5 4 . 10 1 12 Attach 2 | . . 1 1 . . Detach 3 | . . . 2 . 1 Swap . | . . . . . . Drop 48 | . 7 6 25 1 9 Fire 179 | 3 61 24 75 4 12 Melee . | . . . . . . Ram . | . . . . . . Kick . | . . . . . . Crush . | . . . . . . Escape Stasis . | . . . . . . Rewire . | . . . . . . Trap 4 | . . . 4 . . Miscellaneous 44 | . 14 18 2 . 10 Route ------- -11/Scrapyard -10/Materials (discovered 6 exits: *Mat x3 / *Min x2 / [*Sub]) -10/Mines (discovered 3 exits: *Mat x2 / *Exi) -10/Exiles -9/Mines -8/Materials (discovered 1 exit: [*Fac]) History --------- Turn | Location | Event 1 | -11/Scrapyard | Upgraded with Weapon slot (x1) 12 | -11/Scrapyard | Discovered new exit (range 14) 58 | -11/Scrapyard | Entered Materials 59 | -10/Materials | Met a group of wandering Federalists 154 | -10/Materials | Discovered new exit (range 15) 308 | -10/Materials | Build established: Mutant 339 | -10/Materials | Discovered new exit (range 9) 453 | -10/Materials | Discovered new exit (range 15) 509 | -10/Materials | Discovered new exit (range 9) 567 | -10/Materials | Discovered new exit (range 8) 607 | -10/Materials | Discovered new exit (range 16) 708 | -10/Materials | Reached level 2 863 | -10/Materials | Learned Storage stockpile data 900 | -10/Materials | Learned 4 Recycling zone layouts 927 | -10/Materials | Learned location of 1 exit from Storage 947 | -10/Materials | Learned 4 Subcaves zone layouts 948 | -10/Materials | Learned location of 2 exits from Subcaves 949 | -10/Materials | Learned location of 1 exit from Recycling 971 | -10/Materials | Identified exit to Materials 971 | -10/Materials | Identified exit to Mines 1040 | -10/Materials | Entered Mines 1041 | -10/Mines | Learned location of Storage (-7) 1045 | -10/Mines | Deemed a non-threat by the Exiles lab entrance 1045 | -10/Mines | Discovered new exit (range 5) 1093 | -10/Mines | Found a hidden stash of uninstalled traps 1262 | -10/Mines | Reached level 3 1268 | -10/Mines | Upgraded with Weapon slot (x1) 1367 | -10/Mines | Discovered exit to Materials (range 12) 1555 | -10/Mines | Build established: Gunner 1635 | -10/Mines | Learned Materials terminal intel 1647 | -10/Mines | Discovered exit to Materials (range 3) 1789 | -10/Mines | Entered Exiles 1810 | -10/Exiles | Met 8R-AWN 1823 | -10/Exiles | Met EX-HEX 1854 | -10/Exiles | Met EX-DEC 1858 | -10/Exiles | Learned location of Zion (-7) 1931 | -10/Exiles | Met EX-BIN 1942 | -10/Exiles | Aligned with FarCom system 1943 | -10/Exiles | Given EX-Vault access code 1961 | -10/Exiles | Opened EX-Vault 1982 | -10/Exiles | Warned to stay clear of 0b10 Research branches 2206 | -10/Exiles | Visited The Gauntlet 2307 | -10/Exiles | Attacked by the Exiles 2426 | -10/Exiles | Core integrity fell below 50% 2460 | -10/Exiles | Core integrity fell below 20% 2487 | -10/Exiles | Destroyed 8R-AWN 2496 | -10/Exiles | Found Prototype Ballistic Gun 2496 | -10/Exiles | Identified 8R-AWN's Boregun 2503 | -10/Exiles | Found 8R-AWN's Boregun 2517 | -10/Exiles | Found Prototype Device 2517 | -10/Exiles | Identified AS-neutralizer No. 17b 2723 | -10/Exiles | Destroyed EX-BIN 2772 | -10/Exiles | Destroyed EX-HEX 2812 | -10/Exiles | Destroyed EX-DEC 2831 | -10/Exiles | Found Deploy-a-Sentry 2847 | -10/Exiles | Found Prototype Processor 2881 | -10/Exiles | Found Prototype Device 2888 | -10/Exiles | Identified Exp. Core Analyzer 2893 | -10/Exiles | Identified System Purifier 3008 | -10/Exiles | Found PSU Rigger 3228 | -10/Exiles | Discovered new exit (range 10) 3239 | -10/Exiles | Stole two prototypes: PSU Rigger, Deploy-a-Sentry 3239 | -10/Exiles | Entered Mines 3252 | -9/Mines | Met a Derelict bent on vengeance 3440 | -9/Mines | Build established: Scavenger-Gunner 3470 | -9/Mines | Assembled infested the area 3475 | -9/Mines | Assisted by a Guerilla fighting off Assembled 3580 | -9/Mines | Received a Rocket Launcher from a helpful Derelict 3592 | -9/Mines | Discovered new exit (range 6) 3599 | -9/Mines | Entered Materials 3600 | -8/Materials | Loaded intel: 12 terminal locations 3600 | -8/Materials | Core integrity fell below 50% 3600 | -8/Materials | Core integrity fell below 20% 3601 | -8/Materials | Reached level 4 3601 | -8/Materials | Upgraded with Propulsion slot (x1) 3601 | -8/Materials | Upgraded with Utility slot (x1) 3667 | -8/Materials | Reached level 5 3694 | -8/Materials | Garrison activated, responded to threat 3882 | -8/Materials | Garrison activated, responded to threat 3973 | -8/Materials | Met 7R-MNS 3993 | -8/Materials | Attacked by 7R-MNS 4052 | -8/Materials | Discovered new exit (range 16) 4078 | -8/Materials | Destroyed by H-61 Shepherd with Heavy Assault Cannon Last Messages --------------- 04049_ Knocked back. 04052_ EXIT=FOUND 04054_ Knocked back. 04067_ H-61 Shepherd calls for reinforcements. 04067_ ALERT: Hostile activity reported, dispatching reinforcements to area. 04067_ HV Slug penetrates Y-45 Defender. 04067_ HV Slug penetrates Wall. 04067_ HV Slug penetrates Y-45 Defender. 04067_ Y-45 Defender destroyed. 04067_ HV Slug penetrates Wall. 04074_ Slug penetrates Repair Station. 04074_ Repair Station disabled. 04074_ Backup Propulsion I tumbles out of repair station. 04074_ HV Slug penetrates H-61 Shepherd. 04074_ HV Slug penetrates Wall. 04074_ HV Slug penetrates Repair Station. 04076_ Slug penetrates Wall. 04078_ Slug penetrates Repair Station. Map ----- +----------------------------------------------------+ | | | | | | | | | | | | | ?????????????????????????????????????????????????? | | ?????????????????????????????????????????????????? | | ?????????????????????????????????????????????????? | | ?????????????????????????????????????????????????? | | ?????????????????????????????????????????????????? | | ?????????????????????????????????????????????????? | | ?????????????????????????????????????????????????? | | "????????????????????????????????????????????????? | | "????????????????????????????????????????????????? | | ??????????????????????????????#####??????????????? | | ??????????????????????????????# #??????????????? | | ??????????????????????????????# < #??????????????? | | ??????????????????????????????# #??????????????? | | ??????????????????????????????# +??????????????? | | ??????????????????????????????# #??????????????? | | ????????????????????????####### #??????????????? | | ????????????????#########;#;;## #??????????????? | | ????????????????# !=%=# #??????????????? | | ????????????????# !=%=# #??????????????? | | ????????????????# @ *H# #??????????????? | | ????????????????# R"[+ #??????????????? | | ????????????????# % """ ; #??????????????? | | ????????????????# # #??????????????? | | ????????????????######## #####; % ;#?????????##### | | ???????????????????########### #?????????# | | ????????????????? % #?????????# | | ????????????????? #?????????# | | ????????????????? !#????????????"" | | ??????????????????########+### #????????????"" | | ?????????????????????????????#### "#????????????"" | | ????????????????????????????????# ##???????????? | | ????????????????????????????????# #???????????? | | ????????????????????????????????# #????????????### | | ????????????????????????????????# #??????????????? | | ????????????????????????????????# #??????????????? | | ????????????????????????????????# #??????????????? | | ????????????????????????????????# #??????????????? | | ????????????????????????????????# #??????????????? | | ????????????????????????????????# #??????????????? | | ????????????????????????????????# #??????????????? | | ????????????????????????????????# #??????????????? | | ????????????????????????????????# #??????????????? | | ????????????????????????????????# ################ | | ????????????????????????????????# | +----------------------------------------------------+ Best States ------------- Heat Dissipation 31 Energy Generation 24 Energy Capacity 310 Matter Stores 300 Matter Capacity 300 Sight Range 16 Terrain Scan Density 10 Resistance: KI 5 Evasion (%) 55 Targeting Accuracy 6 Core Analysis 8 Salvage Targeting 4 Offensive Hacking 5 Defensive Hacking 5 Item Schematics ----------------- System Purifier | -8/Materials | Scanalyzed Robot Schematics ------------------ None Fabricated ------------ Nothing Repaired ---------- Nothing Studied --------- Carbon-fiber Leg | -8/Materials | Hacked Autogun | -8/Materials | Hacked Alien Tech Used ----------------- None Achievements -------------- None Challenges ------------ None RPGLIKE | -11 -10 -10 -10 -9 -8 --------- Run | Yrd Mat Min Exi Min Mat Levels Raised 4 | . 1 1 . . 2 XP Earned 9700 | 3000 1950 1250 350 850 2300 XP Spent 8930 | 2810 1500 800 825 . 2995 Upgrades 25 | 11 2 1 4 . 7 Propulsion Slot 1 | . . . . . 1 Utility Slot 1 | . . . . . 1 Weapon Slot 2 | 1 . 1 . . . Core Integrity 8 | 4 . . 3 . 1 Heat Dissipation 1 | 1 . . . . . Energy Generation 1 | . . . . . 1 Inventory Capacity 5 | 3 1 . . . 1 Ranged Accuracy 3 | 1 1 . 1 . . Hack Attack % 1 | 1 . . . . . Hack Defense % 1 | . . . . . 1 KI Resistance % 1 | . . . . . 1 Protomatter Created 486 | . 173 115 124 . 74 Integrity Restored 912 | . 297 351 42 . 222 Core 823 | . 297 262 42 . 222 Parts 89 | . . 89 . . . Protomatter Decayed 273 | . 13 54 96 55 55 Game ------ Seed SurgeAuthchipRailgun Manual? 0 Play Time 00:29:08 Cumulative 925.6 hours Start 2026.06.27 @ 00:18:19 End 2026.06.27 @ 00:45:28 Sessions 1 Manual Loads 0 Difficulty Rogue Special Mode Winter2019/RPGLIKE Game No. 259 Rogue 259 Adventurer 0 Explorer 0 Win Type - Total 38 Types 12/7/9/1/2/0/3/1/1/2 Lore% 96 Gallery% 89 Achievement% 86 Wizard Run 0 Options --------- Layout 1 ASCII 0 Keyboard 0 Movement Mouse Keybinds 0 Fullscreen 2 Font 32/SmallcapsGlow Map View 50x35 Zoom Use 0% Tactical HUD 1 Map Filters NONE Filters NONE Steam 1 RUN: a1ee1224-69ba-4c53-a87b-b45e64351318